Cogmind - Beta 15 @@@ ROGUE MODE // 2025.07.22 @ 02:10:22 Player: Mogwok Wargfriend Result: Destroyed by Y-54 Guardian with Gatling Laser Performance ------------- Evolutions (3) 1500 Regions Visited (6) 1200 Robots Destroyed (159) 795 Value Destroyed (4010) 4010 Prototype IDs (6) 120 Alien Tech Used (0) 0 Bonus (0) 0 TOTAL SCORE: 7625 Bonus ------- None Cogmind --------- Core Integrity 0/700 Matter 157/300 Energy 153/250 System Corruption 30% Temperature Hot (214) Movement Rolling (100) Location -7/Factory Parts ------- > --- POWER (1) -------- (None) > --- PROPULSION (3) --- Compact Wheel > --- UTILITY (7) ------ Medium Battery > --- WEAPON (2) ------- Power Maul > --- INVENTORY (5) ---- Reinforced Deuterium Engine Medium Battery (5) Advanced Beam Cannon Plasma Cannon Peak State ------------ > --- POWER ------------ Light Deuterium Engine > --- PROPULSION ------- Armored Treads Armored Huge Wheel > --- UTILITY ---------- Improved Heat Sink Large Storage Unit Weight Redist. System Precision Matter Filter Improved Power Shielding Improved Light Armor Plating Improved Light Armor Plating > --- WEAPON ----------- Pulse Rifle Gauss Rifle > --- INVENTORY -------- Reinforced Deuterium Engine Improved Treads Compact Wheel Large Storage Unit Improved Shield Generator Authchip [R/Combat] Authchip [Propulsion] Pulse Rifle Advanced Beam Cannon Advanced Beam Cannon Plasma Cannon Plasma Cannon Maul [Rating: 46] Favorites ----------- Power Ion Engine Engine Ion Engine Propulsion Light Treads Treads Light Treads Leg Aluminum Leg Wheel Compact Wheel Flight Unit VTOL Module Utility Large Storage Unit Device Improved Heat Sink Storage Large Storage Unit Protection Improved Light Armor Plating Weapon Advanced Beam Cannon Energy Gun Beam Rifle Energy Cannon Advanced Beam Cannon Ballistic Gun Autogun Impact Weapon Maul Slashing Weapon Mining Claw Build | -11 -10 -9 -8 -7 -7 -7 ------- Run | Yrd Mat Mat Mat Fac Was Fac Slots Evolved 6 | . . 2 2 2 . . Power . | . . . . . . . Propulsion 1 | . . . . 1 . . Utility 5 | . . 2 2 1 . . Weapon . | . . . . . . . Parts Attached 94 | 7 9 28 16 28 3 3 Power 7 | 1 . 3 2 1 . . Engine 7 | 1 . 3 2 1 . . Core . | . . . . . . . Reactor . | . . . . . . . Propulsion 25 | 2 3 6 3 8 2 1 Treads 11 | . . 5 1 4 . 1 Leg 4 | . 2 . . . 2 . Wheel 9 | 2 1 1 2 3 . . Hover . | . . . . . . . Flight 1 | . . . . 1 . . Utility 38 | 2 3 11 9 11 1 1 Device 15 | 1 1 4 6 2 1 . Storage 8 | 1 2 2 . 2 . 1 Processor . | . . . . . . . Hackware . | . . . . . . . Protection 15 | . . 5 3 7 . . Artifact . | . . . . . . . Weapon 24 | 2 3 8 2 8 . 1 Energy Gun 15 | 1 1 7 2 4 . . Energy Cannon 1 | . . 1 . . . . Ballistic Gun 5 | 1 1 . . 3 . . Ballistic Cannon . | . . . . . . . Launcher . | . . . . . . . Special Weapon . | . . . . . . . Impact Weapon 2 | . . . . 1 . 1 Slashing Weapon 1 | . 1 . . . . . Piercing Weapon . | . . . . . . . Special Melee Weapon . | . . . . . . . Unidentified Prototypes 5 | . . 2 2 . 1 . Corrupted Parts 2 | . . . . . 2 . System Corruption 8 | . . . . . 8 . Parts Lost 27 | . 4 4 1 11 5 2 Power 2 | . . 1 . 1 . . Propulsion 8 | . 2 1 . 1 2 2 Utility 10 | . 1 . . 7 2 . Weapon 7 | . 1 2 1 2 1 . Highest Loss Streak 6 | . 3 1 1 6 5 2 To Critical Strikes 1 | . . . . . 1 . Average Backups 14 | 4 13 14 14 14 9 4 Power 1 | . 1 . 1 1 1 1 Propulsion 2 | 2 4 2 2 2 2 1 Utility 5 | . 3 7 6 4 2 . Weapon 4 | 1 3 4 4 6 4 2 Tool/Special . | . . . . . . . Unused Backups 36 | 4 4 11 3 4 6 4 Power 6 | . 1 . 2 2 . 1 Propulsion 7 | 4 1 2 . . . . Utility 13 | . . 7 1 . 4 1 Weapon 10 | . 2 2 . 2 2 2 Tool/Special . | . . . . . . . Average Slot Usage (%) 94 | . 99 98 98 92 54 27 Engine 9 | . 14 10 9 6 3 . Treads 9 | . . 14 11 7 3 2 Leg 1 | . 13 . . . 2 13 Wheel 7 | . 14 7 6 7 3 2 Device 20 | . 5 21 26 22 11 . Storage 14 | . 21 13 15 14 3 2 Protection 10 | . . 8 10 14 15 5 Energy Gun 11 | . 16 15 9 8 3 . Energy Cannon 4 | . . 5 9 1 . . Ballistic Gun 2 | . 11 . . 4 3 . Peak Build Rating 46 | 7 8 21 29 43 46 14 Average Rating 25 | 5 7 17 26 39 26 10 On Entrance 16 | . 7 8 21 27 39 10 Naked Turns . | . . . . . . . Heaviest Build 49 | 14 30 40 45 49 46 5 Greatest Support 49 | 20 20 40 49 34 34 16 Greatest Overweight (x) 4 | 4 2 3 2 3 4 . Average Overweight (x) 1 | . 1 1 . 1 . . Largest Inventory Capacity 15 | 8 15 15 15 15 15 5 Average Capacity 14 | 7 14 15 15 15 10 5 Most Carried 15 | 8 15 15 15 15 13 5 Average Carried 14 | 4 13 14 14 14 9 4 Final Capacity 15 | 8 15 15 15 15 5 5 Final Carried 15 | 8 15 15 15 13 5 4 Class Distribution -------------------- 59% | Mutant 40% | Scavenger-Mutant Dominant Class ---------------- Mutant | -10/Materials Scavenger-Mutant | -9/Materials Mutant | -8/Materials Mutant | -7/Factory Mutant | -7/Waste Mutant | -7/Factory Resources | -11 -10 -9 -8 -7 -7 -7 ----------- Run | Yrd Mat Mat Mat Fac Was Fac Matter Collected 2049 | 332 318 453 225 721 . . Remotely . | . . . . . . . Salvage Created 6186 | 140 755 1893 1542 1805 51 . Parts 354 | 11 44 110 79 106 4 . Haulers Intercepted 12 | . 2 5 5 . . . Recyclers Shooed 7 | . 3 2 . 2 . . Parts Field Recycled . | . . . . . . . Retrieved Matter . | . . . . . . . Parts Self-Destructed . | . . . . . . . Prevented . | . . . . . . . Kills | -11 -10 -9 -8 -7 -7 -7 ------- Run | Yrd Mat Mat Mat Fac Was Fac Combat Hostiles Destroyed 96 | . 9 31 20 35 1 . Guns 63 | . 9 23 3 27 1 . Cannons 28 | . . 6 15 7 . . Classes Destroyed 14 | 3 6 2 1 2 . . Worker 15 | 2 3 3 2 5 . . Builder 3 | . 1 . . 2 . . Tunneler 4 | 1 . 1 2 . . . Hauler 12 | . 2 5 5 . . . Recycler 12 | 1 3 3 3 2 . . Mechanic 3 | . 1 1 1 . . . Operator 3 | . . 3 . . . . Watcher 11 | . 3 4 4 . . . Swarmer 32 | . 3 11 6 12 . . Grunt 33 | . 6 12 4 11 . . Brawler 1 | . . . . 1 . . Sentry 20 | . . 8 8 4 . . Hunter 5 | . . . 2 2 1 . Programmer 5 | . . . . 5 . . Best Kill Streak 7 | 2 6 7 4 6 1 . Combat Bots Only 6 | . 3 5 3 6 1 . Max Kills in Single Turn 3 | 1 3 2 1 2 1 . Gunslinging 1 | . . . . 1 . . Exploded . | . . . . . . . Melee . | . . . . . . . Uniques/NPCs Destroyed . | . . . . . . . Combat | -11 -10 -9 -8 -7 -7 -7 -------- Run | Yrd Mat Mat Mat Fac Was Fac Hostile Shots Fired 837 | . 58 139 97 406 10 127 Missed 277 | . 13 45 29 136 2 52 Hits 560 | . 45 94 68 270 8 75 Melee 9 | . . . . 1 8 . Projectile 551 | . 45 94 68 269 . 75 Critical Strikes 15 | . . . 1 10 3 1 Actively Blocked 1 | . . . . 1 . . Part Disruptions 1 | . . . . 1 . . Actively Blocked 1 | . . . . 1 . . Damage Taken 6029 | . 604 1087 786 2567 366 619 Core 1165 | . 84 217 156 283 223 202 Absorbed by Shields 884 | . . . 113 771 . . Redirected to Shielding 159 | . . . 34 125 . . Regen/Repaired (Parts) 182 | . 22 100 60 . . . Core Remaining (%) 70 | 100 66 45 71 . . . Volleys Fired 457 | 7 64 124 109 151 2 . Largest 2 | 2 2 2 2 2 2 . Hottest 126 | 60 80 124 124 126 91 . Shots Fired 908 | 14 127 241 218 304 4 . Gun 736 | 14 127 205 109 277 4 . Cannon 172 | . . 36 109 27 . . Launcher . | . . . . . . . Special . | . . . . . . . Kinetic 149 | 7 46 1 . 93 2 . Thermal 691 | 7 63 240 218 161 2 . Explosive . | . . . . . . . Electromagnetic 68 | . 18 . . 50 . . Robot Hit Streak 19 | 8 12 14 9 19 16 . Robot Miss Streak 7 | 1 6 6 7 6 . . Penetration Max 1 | . . . . 1 . . Secondary Targets 6 | . . 3 . 3 . . Max Gunslinging Chain 1 | . . 1 . 1 . . Shots Hit Robots 574 | 9 75 149 134 203 4 . Core Hits 233 | 5 34 61 49 82 2 . Critical Kills 2 | . . 1 1 . . . Critical Parts Destroyed . | . . . . . . . Critical Strikes 27 | . . 10 8 8 1 . Burn 22 | . . 9 7 6 . . Meltdown 2 | . . 1 1 . . . Destroy 1 | . . . . . 1 . Corrupt 2 | . . . . 2 . . Melee Attacks 7 | . 3 . . 4 . . Impact 4 | . . . . 4 . . Slashing 3 | . 3 . . . . . Piercing . | . . . . . . . Sneak Attacks . | . . . . . . . Combat Hostiles . | . . . . . . . Follow-up Attacks . | . . . . . . . Damage Inflicted 10150 | 105 1464 2365 2557 3584 66 9 Guns 7396 | 105 908 1988 1088 3241 66 . Cannons 2188 | . . 377 1469 342 . . Explosions 556 | . 556 . . . . . Melee . | . . . . . . . Ramming 10 | . . . . 1 . 9 Kinetic 1515 | 29 305 15 . 1134 32 . Thermal 7605 | 76 466 2350 2557 2122 34 . Explosive 533 | . 533 . . . . . Electromagnetic 487 | . 160 . . 327 . . Impact . | . . . . . . . Slashing . | . . . . . . . Piercing . | . . . . . . . Highest Corruption 30 | . 2 1 . 7 30 30 Average Corruption 4 | . 1 1 . 3 16 30 Corruption Purged . | . . . . . . . Corruption Blocked . | . . . . . . . Effects 73 | . 8 6 . 34 12 13 Message Errors 14 | . 1 2 . 7 2 2 Matter Fused 15 | . 1 1 . 9 3 1 Heat Flow Errors 8 | . 2 . . 5 . 1 Energy Discharges 7 | . 2 1 . 3 1 . Parts Rejected 3 | . . . . 1 . 2 Data Loss (minor) 8 | . 1 . . 5 2 . Data Loss (major) 3 | . 1 1 . . . 1 Misfires 3 | . . . . 3 . . Alerts 1 | . . . . 1 . . Misdirections 10 | . . . . . 4 6 Weapon Failures 1 | . . 1 . . . . Overload Shots . | . . . . . . . Overflow Damage 43 | . 29 . 14 . . . Projectiles 14 | . . . 14 . . . Explosions 29 | . 29 . . . . . Melee . | . . . . . . . Knockbacks . | . . . . . . . Impact . | . . . . . . . Kinetic . | . . . . . . . Secondary . | . . . . . . . Self-Inflicted Damage 66 | . 62 . . . . 4 Shots 1 | . 1 . . . . . Rammed 5 | . . . . 1 . 4 Targets Rammed 5 | . . . . 1 . 4 Kicked . | . . . . . . . Crushed . | . . . . . . . Highest Temperature 325 | . 325 120 204 247 . 259 Average Temperature 60 | . 100 37 42 56 . 237 Received Heat Transfer 1498 | . 231 267 132 634 . 234 Effects 4 | . 4 . . . . . Shutdowns 1 | . 1 . . . . . Energy Bleed 2 | . 2 . . . . . Matter Decay 1 | . 1 . . . . . Siege Activations . | . . . . . . . Martial Activations . | . . . . . . . Shielding Activations . | . . . . . . . Robots Disrupted 1 | . . . . 1 . . Combat Hostiles 1 | . . . . 1 . . Robots Corrupted 1 | . . . . 1 . . Combat Hostiles 1 | . . . . 1 . . Parts Fried 3 | . 1 . . 2 . . Impact Corruptions . | . . . . . . . Robots Melted 4 | . . 2 2 . . . Combat Hostiles 4 | . . 2 2 . . . Parts Melted 49 | . 2 24 14 9 . . Heat Transferred 17579 | 175 1050 6253 5587 4440 74 . Parts Sabotaged . | . . . . . . . Parts Stolen . | . . . . . . . Parts Stripped . | . . . . . . . Power Chain Reactions 1 | . 1 . . . . . Alert | -11 -10 -9 -8 -7 -7 -7 ------- Run | Yrd Mat Mat Mat Fac Was Fac Maximum Alert Level 1 | . . 1 1 1 . . Low Security (%) 85 | 100 100 74 82 91 100 100 Level 1 14 | . . 25 17 8 . . Level 2 . | . . . . . . . Level 3 . | . . . . . . . Level 4 . | . . . . . . . Level 5 . | . . . . . . . High Security . | . . . . . . . Max Security . | . . . . . . . Peak Influence 386 | 10 161 267 255 386 133 24 Initial 133 | . . 41 91 24 133 16 Average 126 | 1 67 149 143 128 87 9 Influence Increases 3441 | 20 512 1082 767 996 20 44 Destroy 0b10 Robot/C 1920 | . 180 620 400 700 20 . Destroy 0b10 Robot/NC 315 | 20 65 100 85 45 . . Destroy Leader 556 | . 50 188 148 170 . . Successful Hack 109 | . 21 19 28 27 . 14 Disable Machine 135 | . 105 15 15 . . . Destroy Structure 46 | . 31 5 1 9 . . Partial Spotted 60 | . . . 30 15 . 15 Lose Combat Pursuer 300 | . 60 135 60 30 . 15 Influence Decreases 3441 | 20 413 965 929 668 379 67 Entered New Map 469 | . . 58 125 30 249 7 Time Decay 2373 | 20 393 652 644 528 80 56 Lost Part 234 | . 20 40 10 110 50 4 Purge Threat 365 | . . 215 150 . . . Squads Dispatched 17 | . 1 4 2 9 . 1 Investigation 4 | . 1 . . 2 . 1 Extermination 5 | . . . . 5 . . Reinforcement 7 | . . 4 1 2 . . Assault . | . . . . . . . Garrison 1 | . . . 1 . . . Intercept . | . . . . . . . Searches Triggered . | . . . . . . . Construction Impeded . | . . . . . . . Haulers Reinforced . | . . . . . . . Active Scanning Responses . | . . . . . . . Cargo Convoy Interrupts . | . . . . . . . Stealth | -11 -10 -9 -8 -7 -7 -7 --------- Run | Yrd Mat Mat Mat Fac Was Fac Distress Signals 14 | . . 5 3 4 . 2 Communications Jammed . | . . . . . . . Distress Signals . | . . . . . . . Times Spotted 172 | . 19 53 36 51 6 7 Peak Tracking Total 9 | . 3 6 4 9 6 6 Tactical Retreats 13 | . 3 4 3 2 . 1 Traps | -11 -10 -9 -8 -7 -7 -7 ------- Run | Yrd Mat Mat Mat Fac Was Fac Traps Triggered 7 | . 3 2 . 2 . . Indirectly . | . . . . . . . Trap Hack Attempts . | . . . . . . . Triggered . | . . . . . . . Disarmed . | . . . . . . . Reprogrammed . | . . . . . . . Reused . | . . . . . . . Traps Extracted . | . . . . . . . Installed . | . . . . . . . Triggered . | . . . . . . . Machines | -11 -10 -9 -8 -7 -7 -7 ---------- Run | Yrd Mat Mat Mat Fac Was Fac Machines Disabled 9 | . 7 1 1 . . . Max in Single Turn 3 | . 3 1 1 . . . Garrison Access 1 | . . . 1 . . . Machines Repaired . | . . . . . . . Machines Dismantled . | . . . . . . . Machines Sabotaged . | . . . . . . . Overloaded Fab Kills . | . . . . . . . Hacking | -11 -10 -9 -8 -7 -7 -7 --------- Run | Yrd Mat Mat Mat Fac Was Fac Machines Accessed 40 | . 8 9 14 8 . 1 Terminals 24 | . 6 5 9 4 . . Fabricators 1 | . . . . . . 1 Repair Stations 4 | . 1 2 1 . . . Recycling Units 6 | . 1 1 2 2 . . Scanalyzers 3 | . . 1 1 1 . . Garrison Access 2 | . . . 1 1 . . Total Hacks 137 | . 33 32 51 17 . 4 Successful 76 | . 13 19 34 7 . 3 Failed 61 | . 20 13 17 10 . 1 Catastrophic 9 | . 3 1 2 2 . 1 Database Lockouts . | . . . . . . . Manual 77 | . 24 18 23 12 . . Terminals 84 | . 25 18 31 10 . . Fabricators 4 | . . . . . . 4 Repair Stations 13 | . 2 7 4 . . . Recycling Units 19 | . 6 4 6 3 . . Scanalyzers 14 | . . 3 9 2 . . Garrison Access 3 | . . . 1 2 . . Terminal Hacks 26 | . 8 6 8 4 . . Record 2 | . . 1 1 . . . Robot Analysis 9 | . 5 1 2 1 . . Prototype ID Bank 1 | . . . 1 . . . Branch Access Points 1 | . . . . 1 . . Terminal Index 3 | . 1 . 1 1 . . Fabricator Index 1 | . . . . 1 . . Alert Level 2 | . . 2 . . . . Unreport Threat 3 | . . 2 1 . . . Locate Traps 3 | . 2 . 1 . . . Transport Status 1 | . . . 1 . . . Fabricator Hacks 3 | . . . . . . 3 Network Status 1 | . . . . . . 1 Load Schematic 1 | . . . . . . 1 Build 1 | . . . . . . 1 Repair Station Hacks 12 | . 2 6 4 . . . Scan Component 6 | . 1 3 2 . . . Repair 6 | . 1 3 2 . . . Recycling Unit Hacks 5 | . 1 . 4 . . . Report Inventory 3 | . 1 . 2 . . . Retrieve Components 2 | . . . 2 . . . Scanalyzer 12 | . . 1 9 2 . . Insert Component 6 | . . 1 4 1 . . Analyze 6 | . . . 5 1 . . Garrison Access Hacks 1 | . . . 1 . . . Seal Access 1 | . . . 1 . . . Unauthorized Hacks 17 | . 2 6 8 1 . . Terminals 13 | . 1 5 6 1 . . Assimilate 3 | . . 2 1 . . . Botnet 7 | . . 2 4 1 . . Operators 3 | . 1 1 1 . . . Fabricators . | . . . . . . . Repair Stations . | . . . . . . . Recycling Units 4 | . 1 1 2 . . . Reject 4 | . 1 1 2 . . . Scanalyzers . | . . . . . . . Garrison Access . | . . . . . . . Data Cores Recovered . | . . . . . . . Used . | . . . . . . . Hacking Detections 34 | . 7 7 11 8 . 1 Full Trace Events 5 | . 2 . . 2 . 1 Feedback Events . | . . . . . . . Feedback Blocked . | . . . . . . . Robot Schematics Acquired . | . . . . . . . Robots Built . | . . . . . . . Authchips . | . . . . . . . Time . | . . . . . . . Total Robot Build Rating . | . . . . . . . Part Schematics Acquired 5 | . . . 4 1 . . Parts Built 3 | . . . . . . 3 Authchips . | . . . . . . . Time 25 | . . . . . . 25 Total Part Build Rating 3 | . . . . . . 3 Parts Repaired 6 | . 1 3 2 . . . Time 192 | . 26 84 82 . . . Parts Recycled . | . . . . . . . Recycled Matter . | . . . . . . . Retrieved Matter . | . . . . . . . Retrieved Components 14 | . . . 14 . . . Parts Scanalyzed 5 | . . . 4 1 . . Part Schematics Acquired 5 | . . . 4 1 . . Parts Damaged . | . . . . . . . Bothacking | -11 -10 -9 -8 -7 -7 -7 ------------ Run | Yrd Mat Mat Mat Fac Was Fac Used RIF Installer . | . . . . . . . Robots Hacked . | . . . . . . . Non-combat . | . . . . . . . Combat . | . . . . . . . Robot Hacks Applied . | . . . . . . . Relay Couplers Released . | . . . . . . . Fabnet Peak Effective % . | . . . . . . . Robots Rewired . | . . . . . . . Allies Hacked . | . . . . . . . Hacks Repelled . | . . . . . . . Allies | -11 -10 -9 -8 -7 -7 -7 -------- Run | Yrd Mat Mat Mat Fac Was Fac Total Allies 1 | . . . 1 . . . Largest Group 1 | . . . 1 1 . . Highest-Rated Group 10 | . . . 10 10 . . Highest-Rated Ally 10 | . . . 10 10 . . Total Orders 10 | . . . 4 6 . . STAY 5 | . . . 2 3 . . FOLLOW 5 | . . . 2 3 . . Ally Attacks . | . . . . . . . Total Damage . | . . . . . . . Kills . | . . . . . . . Allies Corrupted . | . . . . . . . Allies Melted . | . . . . . . . Intel | -11 -10 -9 -8 -7 -7 -7 ------- Run | Yrd Mat Mat Mat Fac Was Fac Active Infowar (turns) 57 | 11 46 . . . . . Seismic 57 | 11 46 . . . . . Robot Analysis Total 9 | . 5 1 2 1 . . Derelict Logs Recovered . | . . . . . . . Drone Launches . | . . . . . . . Drone Recoveries . | . . . . . . . Exploration | -11 -10 -9 -8 -7 -7 -7 ------------- Run | Yrd Mat Mat Mat Fac Was Fac Turns Passed 9079 | 139 1051 2537 2326 2730 166 130 Spaces Moved 5770 | 116 688 1413 1400 1795 194 164 Core 302 | 24 . . . . 127 151 Treads 682 | . . 463 219 . . . Legs . | . . . . . . . Wheels 4786 | 92 688 950 1181 1795 67 13 Hover . | . . . . . . . Flight . | . . . . . . . Fastest Speed 50 | 50 80 115 115 95 50 50 Average Speed 118 | 80 109 137 122 116 74 53 Slowest Speed 250 | 250 115 240 240 130 250 100 Overloaded Moves . | . . . . . . . Propulsion Burnouts . | . . . . . . . Robots Hopped . | . . . . . . . Potential Cave-ins . | . . . . . . . Cave-ins Triggered . | . . . . . . . Exploration Rate (%) 52 | 5 92 80 81 29 77 6 Regions Visited 6 Branch Regions . Pre-discovered Areas . | . . . . . . . Known Exits Taken . | . . . . . . . Unknown Exits Taken 4 | 1 1 1 1 . . . Scrap Searched . | . . . . . . . Spaces Dug 4 | . 2 . . 2 . . Terrain Destroyed 42 | . 40 . . 2 . . Melee 4 | . 2 . . 2 . . Projectile . | . . . . . . . AOE 38 | . 38 . . . . . Terrain Rammed . | . . . . . . . Walls Destroyed . | . . . . . . . Machines Disabled . | . . . . . . . Actions | -11 -10 -9 -8 -7 -7 -7 --------- Run | Yrd Mat Mat Mat Fac Was Fac Total 7158 | 146 854 1786 1804 2154 209 205 Wait 622 | 1 66 154 242 123 10 26 Move 5765 | 115 687 1412 1399 1795 193 164 Hop . | . . . . . . . Pick Up 75 | 12 16 26 9 11 . 1 Fast Attach 49 | 7 1 8 13 13 3 4 Attach 29 | . 5 8 4 9 . 3 Detach 5 | . 1 2 . 1 . 1 Swap 38 | . 4 14 6 14 . . Drop 96 | 4 7 38 22 23 . 2 Fire 457 | 7 64 124 109 151 2 . Melee 7 | . 3 . . 4 . . Ram 6 | . . . . 1 1 4 Kick . | . . . . . . . Crush . | . . . . . . . Escape Stasis . | . . . . . . . Rewire 9 | . . . . 9 . . Trap . | . . . . . . . Miscellaneous . | . . . . . . . Route ------- -11/Scrapyard -10/Materials (discovered 5 exits: *Mat x3 / [*Min] / [*Sub]) -9/Materials (discovered 5 exits: *Mat x3 / [*Min x2]) -8/Materials (discovered 2 exits: *Fac x2) -7/Factory (discovered 4 exits: [*Fac] / Sto / *Low x2) -7/Waste -7/Factory History --------- Turn | Location | Event 4 | -11/Scrapyard | Discovered new exit (range 15) 140 | -11/Scrapyard | Entered Materials 247 | -10/Materials | Lost 3 parts (1n1u1w) 314 | -10/Materials | Build established: Mutant 317 | -10/Materials | Discovered new exit (range 8) 633 | -10/Materials | Discovered new exit (range 5) 714 | -10/Materials | Discovered new exit (range 13) 788 | -10/Materials | Repaired Med. Battery 911 | -10/Materials | Discovered new exit (range 8) 949 | -10/Materials | Discovered new exit (range 16) 1191 | -10/Materials | Entered another Materials area 1191 | -9/Materials | Evolved 2 slots: Utility x2 1689 | -9/Materials | Discovered new exit (range 14) 1794 | -9/Materials | Build established: Scavenger-Mutant 2503 | -9/Materials | Discovered new exit (range 10) 2658 | -9/Materials | Repaired Wheel 2685 | -9/Materials | Repaired Ion Engine 2730 | -9/Materials | Discovered new exit (range 16) 2876 | -9/Materials | Core integrity fell below 50% 2920 | -9/Materials | Discovered new exit (range 10) 3030 | -9/Materials | Repaired Imp. Ion Engine 3369 | -9/Materials | Discovered new exit (range 6) 3728 | -9/Materials | Entered another Materials area 3728 | -8/Materials | Evolved 2 slots: Utility x2 4532 | -8/Materials | Discovered new exit (range 14) 4556 | -8/Materials | Build established: Mutant 4965 | -8/Materials | Discovered new exit (range 16) 5277 | -8/Materials | Repaired Imp. Shield Generator 5316 | -8/Materials | Repaired Adv. Weight Redist. System 5330 | -8/Materials | Garrison activated, responded to threat 6054 | -8/Materials | Entered Factory 6054 | -7/Factory | Accompanied by 1 ally 6054 | -7/Factory | Evolved 2 slots: Propulsion x1, Utility x1 6679 | -7/Factory | Lost 6 parts (1n4u1w) 6856 | -7/Factory | Build established: Scavenger-Mutant 7147 | -7/Factory | Discovered new exit (range 7) 7159 | -7/Factory | Build established: Mutant 7579 | -7/Factory | Discovered new exit (range 6) 7782 | -7/Factory | Identified exit to Storage 7782 | -7/Factory | Identified exit to Lower Caves 7958 | -7/Factory | Build established: Scavenger-Mutant 8509 | -7/Factory | P-60 Hacker assimilated allied Technician 3a 8683 | -7/Factory | Build established: Mutant 8784 | -7/Factory | Sucked down chute 8784 | -7/Factory | Entered Waste 8799 | -7/Waste | EMP discharged 8799 | -7/Waste | System corruption reached 10% 8816 | -7/Waste | Spotted C-40 Crusher 8827 | -7/Waste | Spotted C-40 Crusher 8832 | -7/Waste | Spotted C-40 Crusher 8869 | -7/Waste | Crushed by Compactor (0 parts destroyed, 1 dropped) 8869 | -7/Waste | Crushed by Compactor (1 part destroyed, 1 dropped) 8872 | -7/Waste | Crushed by Compactor (1 part destroyed, 2 dropped) 8873 | -7/Waste | Crushed by Compactor (1 part destroyed, 1 dropped) 8874 | -7/Waste | Crushed by Compactor (1 part destroyed, 1 dropped) 8899 | -7/Waste | EMP discharged 8901 | -7/Waste | Core integrity fell below 50% 8905 | -7/Waste | Lost 5 parts (2n2u1w) 8909 | -7/Waste | Spotted C-40 Crusher 8913 | -7/Waste | Spotted C-40 Crusher 8918 | -7/Waste | Spotted C-40 Crusher 8922 | -7/Waste | System corruption reached 30% 8941 | -7/Waste | Discovered new exit (range 16) 8950 | -7/Waste | Entered Factory 9032 | -7/Factory | Fabricated Med. Battery (x3) 9045 | -7/Factory | Core integrity fell below 20% 9080 | -7/Factory | Destroyed by Y-54 Guardian with Gatling Laser Last Messages --------------- 09043_ System corrupted: Carbon-fiber Leg rejected. 09043_ Dropped Imp. Power Shielding. 09043_ Acquired Carbon-fiber Leg. 09045_ Acquired Med. Battery. 09047_ K-01 Serf collects debris. 09049_ K-01 Serf cleans the Fabricator. 09050_ Slammed into K-01 Serf. 09057_ Slammed into A-02 Transporter. 09057_ A-02 Transporter sends out distress signal. 09058_ Slammed into A-02 Transporter. 09061_ System corrupted: Substantial component data lost. 09065_ Acquired Power Maul. 09066_ Dropped Carbon-fiber Leg. 09075_ Critical hit (Burn: +37). 09076_ System corrupted: Heat flow error (+293). 09077_ Imp. Treads destroyed. 09078_ Carbon-fiber Leg destroyed. Map ----- +----------------------------------------------------+ | ?????????????????????????????????? ??????????? | | ?????????????????????????????????"" #?????????? | | ????????????????????????????????""" #?????????? | | ????????????????????????????????""" #?????????? | | ???????????????????????????????? #?????????? | | ?????????????????????????????"" """ #?????????? | | ?????????????????????????????"" """ #?????????? | | ??????????????????????????????" """ #?????????? | | ????????????????????????????? ########### | | ?????????????????????????????"" """ | | ????????????????????????????""" """ | | ????????????????????????""" """ """ | | ?????????????????????? | | ?????????????????????? ] | | ??????????????????????????###########/########## | | ???????????????????????????????# #??# | | ???????????????????????????##??# #??# | | ????????????????????####### #### """"" #??# | | ????????????????????# =! ## """"" #??# | | ????????????????????# !! """ ## """ #??# | | ????????????????????# !!Y""" ## #??# | | ????????????????????# """ ## #??# | | ????????????????????# "" ## ! ! #??# | | ????????????????????# "" ## "" "" #??# | | ????????????????????# Y g ## ""F"" #??# | | ????????????????????#####@###### """ #??# | | ????????????????????????# Yg / #??# | | ????????????????????????# ###################??# | | ????????????????????????# #????????????????????### | | ???????????????????????? ??????????????????????? | | ??????????????????????? ??????????????????????? | | ?????????????????????? ??????????????????????? | | ??????????????????????# ?????????????????????? | | ??????????????????????# / ?????????????????????? | | ???????????????????????# #?????????????????????? | | ???????????????????????# #?????????????????????? | | ???????????????????????# #?????????????????????? | | ???????????????????????# #?????????????????????? | | ???????????????????????# #?????????????????????? | | ???????????????????????? ??????????????????????? | | ???????????????????????? ?????????????????????## | | ???????????????????????? " ?????????????????????# | | ????????????????????????????????????????????????# | | ????????????????????????????????????????????????# | | ????????????????????????????????????????????????# | | ????????????????????????????????????????????????# | | ????????????????????????????????????????????????# | | ????????????????????????????????????????????????# | | ????????????????????????????????????????????????# | | ????????????????????????????????????????????????# | +----------------------------------------------------+ Best States ------------- Heat Dissipation 67 Energy Generation 16 Energy Capacity 440 Matter Stores 300 Matter Capacity 300 Sight Range 16 Terrain Scan Density 10 Additional Mass Support 9 Armor Coverage 300 Power Shielding 66 Evasion (%) 50 Recoil Reduction 2 Authchip Count 3 Item Schematics ----------------- Med. Battery | -8/Materials | Scanalyzed Imp. Shield Generator | -8/Materials | Scanalyzed Imp. Treads | -8/Materials | Scanalyzed Imp. Light Armor Plating | -8/Materials | Scanalyzed Adv. Beam Cannon | -7/Factory | Scanalyzed Robot Schematics ------------------ None Fabricated ------------ Med. Battery | x3 | -7/Factory Repaired ---------- Med. Battery | 12% | -10/Materials Wheel | 22% | -9/Materials Ion Engine | 25% | -9/Materials Imp. Ion Engine | 65% | -9/Materials Imp. Shield Generator | 2% | -8/Materials Adv. Weight Redist. System | 12% | -8/Materials Alien Tech Used ----------------- None Achievements -------------- None Challenges ------------ None Game ------ Seed ConcussiveJunkMatrix Manual? 0 Play Time 01:09:47 Cumulative 255.5 hours Start 2025.07.14 @ 18:41:50 End 2025.07.22 @ 02:10:22 Sessions 6 Manual Loads 0 Difficulty Rogue Special Mode None Game No. 239 Rogue 239 Adventurer 0 Explorer 0 Win Type - Total 1 Types 1/0/0/0/0/0/0/0/0/0 Lore% 62 Gallery% 61 Achievement% 48 Wizard Run 0 Options --------- Layout 2 ASCII 1 Keyboard 1 Movement Numpad Keybinds 0 Fullscreen 2 Font 32/TamsynBold Map View 50x44 Zoom Use 0% Tactical HUD 1 Map Filters NONE Filters NONE Steam 1 RUN: e82bf215-1f07-40da-bd77-62f316e5af18